bitfinex/quotes_BTCUSD_20250417
["timestamp","ask_amount","ask_price","bid_price","bid_amount"]
[1744870232152,0.002,84439.0,84438.0,1.28264295]
[1744870235022,0.002,84439.0,84438.0,1.03124192]
[1744870235228,0.002,84439.0,84438.0,1.02228791]
[1744870235405,0.0475,84439.0,84438.0,1.02228791]
[1744870235603,0.0475,84439.0,84438.0,0.68228791]
[1744870235788,0.0475,84439.0,84438.0,1.25914809]
[1744870236149,0.0475,84439.0,84438.0,0.91614809]
[1744870236389,0.0475,84439.0,84438.0,0.83734809]
[1744870236587,0.0475,84439.0,84438.0,0.83534809]
[1744870236944,0.0475,84439.0,84438.0,0.49534809]
[1744870237150,0.0475,84439.0,84438.0,0.25848791]
[1744870237808,0.05823366,84439.0,84438.0,0.25848791]
[1744870238029,0.0475,84439.0,84438.0,0.25848791]
[1744870238217,0.05823366,84439.0,84438.0,0.25848791]
[1744870240151,0.05823366,84439.0,84438.0,0.13904]
[1744870241466,0.05923366,84439.0,84438.0,0.13904]
[1744870242711,0.06023366,84439.0,84438.0,0.13904]
[1744870243745,0.06023366,84439.0,84437.0,1.10784]
[1744870245537,0.05923366,84439.0,84437.0,1.10784]
[1744870245957,0.06023366,84439.0,84437.0,1.10784]
[1744870246168,0.0495,84439.0,84437.0,1.10784]
[1744870246397,0.0485,84439.0,84437.0,1.10784]
[1744870246643,0.0495,84439.0,84438.0,0.23686018]
[1744870246844,0.004,84439.0,84438.0,0.35630809]
[1744870247523,0.003,84439.0,84438.0,0.35630809]
[1744870249716,0.004,84439.0,84438.0,0.35630809]
[1744870257574,0.003,84439.0,84438.0,0.35630809]
[1744870258340,0.002,84439.0,84438.0,0.35630809]
[1744870268377,0.002,84439.0,84438.0,0.11944791]
[1744870271097,0.002,84439.0,84438.0,0.25788791]
[1744870279858,0.002,84439.0,84438.0,0.11944791]
[1744870280048,0.002,84439.0,84438.0,0.25788791]
[1744870280634,0.003,84439.0,84438.0,0.25788791]
[1744870281192,0.003,84439.0,84438.0,0.13844]
[1744870281418,0.01078759,84439.0,84438.0,0.13844]
[1744870281665,0.01178759,84439.0,84438.0,0.13844]
[1744870282071,0.01184314,84437.0,84434.0,0.4188]
[1744870282225,0.01184314,84437.0,84436.0,0.13844]
[1744870286629,0.23689104,84427.0,84426.0,1.10804]
[1744870286830,0.23689104,84427.0,84426.0,1.24648]
[1744870287032,0.28599104,84427.0,84426.0,0.13844]
[1744870287931,0.23691068,84420.0,84419.0,0.01159934]
[1744870288127,0.23691068,84420.0,84419.0,0.00013556]
[1744870289167,0.28799104,84427.0,84419.0,0.01176574]
[1744870289369,0.003,84427.0,84424.0,0.01184497]
[1744870289572,0.003,84427.0,84425.0,0.23689406]
[1744870289876,0.002,84427.0,84425.0,0.23689406]
[1744870290294,0.00642368,84426.0,84425.0,0.23689406]
[1744870290629,0.002,84427.0,84425.0,0.23689406]
[1744870290630,0.001,84427.0,84425.0,0.23689406]
[1744870290849,0.01184413,84430.0,84426.0,0.01184469]
[1744870291064,0.23687968,84432.0,84426.0,0.01184469]
[1744870291065,0.0459,84433.0,84428.0,0.01184441]
[1744870291179,0.01184385,84432.0,84429.0,0.01184427]
[1744870291383,0.01184399,84431.0,84428.0,0.01184441]
[1744870291627,0.01184399,84431.0,84426.0,0.01184469]
[1744870291628,0.01184413,84430.0,84426.0,0.01184469]
[1744870291821,0.002,84427.0,84426.0,0.01184469]
[1744870292231,0.00642532,84427.0,84426.0,0.01184469]
[1744870292449,0.01184427,84429.0,84426.0,0.01184469]
[1744870292644,0.00642532,84427.0,84424.0,0.2487422]
[1744870292799,0.01184413,84430.0,84427.0,0.01184455]
[1744870293644,0.01714703,84430.0,84427.0,0.01184455]
[1744870294572,0.01814703,84430.0,84427.0,0.01184455]
[1744870294774,0.01184427,84429.0,84426.0,0.01184469]
[1744870295267,0.24873035,84429.0,84424.0,0.01184497]
[1744870295472,0.01184455,84427.0,84424.0,0.01184497]
[1744870295768,0.01184455,84427.0,84422.0,0.24875031]
[1744870295931,0.01184497,84424.0,84423.0,0.11944791]
[1744870296345,0.24874442,84424.0,84423.0,0.11944791]
[1744870297492,0.24974442,84424.0,84423.0,0.11944791]
[1744870297916,0.25074442,84424.0,84423.0,0.11944791]
[1744870298700,0.23690507,84422.0,84421.0,0.13812]
[1744870300058,0.23790507,84422.0,84421.0,0.13812]
[1744870300450,0.23890507,84422.0,84421.0,0.13812]
[1744870300800,0.23691068,84420.0,84419.0,0.01176574]
[1744870301012,0.23691068,84420.0,84419.0,0.00013556]
[1744870302469,0.24975032,84422.0,84419.0,0.00013556]
[1744870302622,0.24875162,84422.0,84419.0,0.00013556]
[1744870303021,0.001,84420.0,84419.0,0.00013556]
[1744870303633,0.24875162,84422.0,84419.0,0.00013556]
[1744870304035,0.24975162,84422.0,84419.0,0.00013556]
[1744870304243,0.24875162,84422.0,84419.0,0.00013556]
[1744870304473,0.001,84420.0,84419.0,0.00013556]
[1744870304689,0.002,84420.0,84419.0,0.00013556]
[1744870304896,0.001,84420.0,84419.0,0.00013556]
[1744870306644,0.24875162,84422.0,84419.0,0.00013556]
[1744870306799,0.23791068,84420.0,84419.0,0.00013556]
[1744870307230,0.00736321,84420.0,84419.0,0.00013556]
[1744870307432,0.00636321,84420.0,84419.0,0.00013556]
[1744870307606,0.001,84420.0,84419.0,0.00013556]
[1744870308101,0.00736321,84420.0,84419.0,0.00013556]
[1744870310168,0.00836321,84420.0,84419.0,0.00013556]
[1744870310761,0.24527389,84420.0,84419.0,0.00013556]
[1744870313796,0.26743802,84420.0,84419.0,0.00013556]
[1744870314820,0.26643802,84420.0,84419.0,0.00013556]
[1744870314992,0.26743802,84420.0,84419.0,0.00013556]
[1744870315342,0.26643802,84420.0,84419.0,0.00013556]
[1744870315761,0.26543802,84420.0,84419.0,0.00013556]
[1744870316176,0.26743802,84420.0,84419.0,0.00013556]
[1744870316382,0.26543802,84420.0,84419.0,0.00013556]
[1744870316815,0.26843802,84420.0,84419.0,0.00013556]
[1744870317600,0.03152734,84420.0,84419.0,0.00013556]
[1744870347361,0.07882734,84420.0,84419.0,0.00013556]
[1744870348184,0.07782734,84420.0,84419.0,0.00013556]
[1744870348567,0.07982734,84420.0,84419.0,0.00013556]
[1744870349712,0.07782734,84420.0,84419.0,0.00013556]
[1744870349938,0.07982734,84420.0,84419.0,0.00013556]
[1744870350366,0.27685659,84420.0,84419.0,0.00013556]
[1744870351004,0.21335869,84420.0,84419.0,0.00013556]
[1744870353065,0.21335126,84420.0,84419.0,0.00013556]
[1744870355418,0.09390335,84420.0,84419.0,0.00013556]
[1744870355612,0.04660335,84420.0,84419.0,0.00013556]
[1744870355938,0.03551991,84420.0,84419.0,0.00013556]
[1744870361962,0.03550569,84420.0,84419.0,0.00013556]
[1744870381792,0.27241637,84420.0,84419.0,0.00013556]
[1744870383307,0.25027389,84420.0,84419.0,0.00013556]
[1744870401178,0.28352902,84420.0,84419.0,0.00013556]
[1744870405672,0.32922902,84420.0,84419.0,0.00013556]
[1744870409343,0.33754701,84420.0,84419.0,0.00013556]
[1744870409668,0.84160088,84420.0,84419.0,0.00013556]
[1744870410215,0.79699492,84420.0,84419.0,1e-08]
[1744870410981,0.84219492,84420.0,84419.0,1e-08]
[1744870411358,0.83819492,84420.0,84419.0,1e-08]
[1744870411609,0.84219492,84420.0,84419.0,1e-08]
[1744870412108,0.83919492,84420.0,84419.0,1e-08]
[1744870412260,0.85373577,84420.0,84419.0,1e-08]
[1744870412464,0.85673577,84420.0,84419.0,1e-08]
[1744870412863,0.84973577,84420.0,84419.0,1e-08]
[1744870413067,0.85473577,84420.0,84419.0,1e-08]
[1744870413295,0.97418368,84420.0,84419.0,1e-08]
[1744870413489,0.97818368,84420.0,84419.0,1e-08]
[1744870413909,0.97418368,84420.0,84419.0,1e-08]
[1744870414314,0.96918368,84420.0,84419.0,1e-08]
[1744870414691,0.97618368,84420.0,84419.0,1e-08]
[1744870415089,0.98118368,84420.0,84419.0,1e-08]
[1744870417319,0.97286569,84420.0,84419.0,1e-08]
[1744870419962,0.85341778,84420.0,84419.0,1e-08]
[1744870420563,0.79367693,84420.0,84419.0,1e-08]
[1744870422355,0.74797693,84420.0,84419.0,1e-08]
[1744870426600,0.79337693,84420.0,84419.0,1e-08]
[1744870428771,0.80791778,84420.0,84419.0,1e-08]
[1744870429000,0.92736569,84420.0,84419.0,1e-08]
[1744870429448,0.93567526,84420.0,84419.0,1e-08]
[1744870433956,1.03532807,84420.0,84419.0,1e-08]
[1744870434239,0.23698367,84394.0,84373.0,0.0469]
[1744870434483,0.23699209,84391.0,84390.0,0.0012951]
[1744870434731,0.26439095,84391.0,84390.0,0.0012951]
[1744870435208,0.27270052,84391.0,84390.0,0.0012951]
[1744870435640,0.28378557,84391.0,84390.0,0.0012951]
[1744870435866,0.28678557,84391.0,84390.0,0.0012951]
[1744870436070,0.278476,84391.0,84390.0,0.0012951]
[1744870436811,0.280476,84391.0,84390.0,0.0012951]
[1744870442444,0.386638,84391.0,84390.0,0.0012951]
[1744870447661,0.280476,84391.0,84390.0,0.0012951]
[1744870456228,0.25830592,84391.0,84390.0,0.0487951]
[1744870468244,0.25307714,84391.0,84390.0,0.0487951]
[1744870473589,0.25308167,84391.0,84390.0,0.0487951]
[1744870474528,0.01608958,84391.0,84390.0,0.0487951]
[1744870478590,0.03827132,84391.0,84390.0,0.0487951]
[1744870482170,0.01608958,84391.0,84390.0,0.0487951]
[1744870486071,0.03828106,84391.0,84390.0,0.0487951]
[1744870486465,0.27527315,84391.0,84390.0,0.0487951]
[1744870486891,0.03828106,84391.0,84390.0,0.0487951]
[1744870487113,0.03828106,84391.0,84390.0,0.28579]
[1744870489485,0.03628106,84391.0,84390.0,0.28579]
[1744870490073,0.01608958,84391.0,84390.0,0.28579]
[1744870490452,0.01608958,84391.0,84390.0,0.0487951]
[1744870490782,0.01308958,84391.0,84390.0,0.0487951]
[1744870491217,0.01408958,84391.0,84390.0,0.0487951]
[1744870491414,0.01408958,84391.0,84390.0,0.28579]
[1744870497544,0.01408958,84391.0,84390.0,0.40523791]
[1744870497748,0.01408958,84391.0,84390.0,0.45383791]
[1744870498316,0.001,84391.0,84390.0,0.45383791]
[1744870498515,0.0099444,84402.0,84399.0,0.23696963]
[1744870498925,0.01184777,84404.0,84399.0,0.24881811]
[1744870499128,0.009908,84408.0,84399.0,0.01184848]
[1744870499329,0.009908,84408.0,84406.0,0.23694854]
[1744870499534,0.01184595,84417.0,84406.0,0.23694854]
[1744870499535,0.0110866,84407.0,84406.0,0.23694854]
[1744870500341,0.01184651,84413.0,84404.0,0.049]
[1744870500573,0.23694163,84409.0,84404.0,0.049]
[1744870500808,0.01184735,84407.0,84404.0,0.049]
[1744870501263,0.00465831,84406.0,84404.0,0.28595413]
[1744870501701,0.01184735,84407.0,84404.0,0.049]
[1744870501921,0.00465831,84405.0,84404.0,0.049]
[1744870502143,0.01284735,84407.0,84404.0,0.049]
[1744870502359,0.01284735,84407.0,84404.0,0.05]
[1744870502769,0.00465831,84406.0,84404.0,0.05]
[1744870503739,0.001,84405.0,84404.0,0.05]
[1744870503940,0.0057281,84405.0,84404.0,0.05]
[1744870504140,0.0057281,84405.0,84404.0,0.28695559]
[1744870504343,0.05237441,84439.0,84412.0,0.23693313]
[1744870504344,0.0099022,84413.0,84412.0,0.23693313]
[1744870504719,0.01184581,84418.0,84414.0,0.23692725]
[1744870504924,0.004724,84417.0,84414.0,0.24877362]
[1744870505132,0.01656995,84417.0,84413.0,0.01184651]
[1744870505537,0.004724,84417.0,84414.0,0.24877389]
[1744870505758,0.004724,84417.0,84414.0,0.26049217]
[1744870505964,0.23692191,84416.0,84414.0,0.01171828]
[1744870506163,0.00475514,84415.0,84412.0,0.01184665]
[1744870507986,0.00675514,84415.0,84412.0,0.01184665]
[1744870508185,0.01860137,84415.0,84409.0,0.23694]
[1744870508485,0.01860137,84415.0,84410.0,0.11944791]
[1744870508486,0.01184651,84413.0,84410.0,0.11944791]
[1744870508691,0.01184651,84413.0,84405.0,0.05834763]
[1744870508692,0.01184679,84411.0,84404.0,0.4678]
[1744870508897,0.01184721,84408.0,84404.0,0.61093684]
[1744870509107,0.01184721,84408.0,84405.0,0.13608]
[1744870509332,0.00488571,84407.0,84405.0,0.13608]
[1744870509531,0.00488571,84407.0,84406.0,0.23694997]
[1744870509912,0.01184679,84411.0,84406.0,0.24879746]
[1744870510114,0.0099078,84413.0,84409.0,0.01184707]
[1744870510456,0.01184651,84413.0,84409.0,0.01184707]
[1744870510886,0.01184665,84412.0,84409.0,0.01184707]
[1744870511099,0.01184651,84413.0,84409.0,0.01184707]
[1744870511271,0.01184623,84415.0,84408.0,0.2369418]
[1744870511474,0.01184609,84416.0,84411.0,0.01184679]
[1744870511683,0.01184623,84415.0,84411.0,0.01184679]
[1744870511855,0.001,84413.0,84411.0,0.01184679]
[1744870514297,0.003,84413.0,84411.0,0.01184679]
[1744870514527,0.01484651,84413.0,84408.0,0.13129512]
[1744870514721,0.01484651,84413.0,84409.0,0.01184707]
[1744870515330,0.01384651,84413.0,84410.0,0.01184693]
[1744870516071,0.01184665,84412.0,84408.0,0.11944791]
[1744870516453,0.01284651,84413.0,84409.0,0.24878862]
[1744870516658,0.001,84413.0,84411.0,0.23693594]
[1744870517381,0.01184623,84415.0,84411.0,0.23693594]
[1744870517591,0.01184623,84415.0,84410.0,0.01184693]
[1744870517791,0.003,84413.0,84410.0,0.01184693]
[1744870517985,0.002,84413.0,84410.0,0.01184693]
[1744870518289,0.002,84413.0,84411.0,0.35638385]
[1744870518490,0.003,84413.0,84411.0,0.35638385]
[1744870518667,0.002,84413.0,84411.0,0.35638385]
[1744870518883,0.003,84413.0,84411.0,0.35638385]
[1744870519078,0.001,84413.0,84411.0,0.35638385]
[1744870519312,0.01184623,84415.0,84411.0,0.1312947]
[1744870519516,0.003,84413.0,84411.0,0.1312947]
[1744870520065,0.001,84413.0,84411.0,0.1312947]
[1744870522532,0.003,84413.0,84411.0,0.1312947]
[1744870529665,0.003,84413.0,84411.0,0.36822917]
[1744870530815,0.003,84413.0,84412.0,0.13608]
[1744870531768,0.002,84413.0,84412.0,0.13608]
[1744870532191,0.003,84413.0,84412.0,0.13608]
[1744870532394,0.001,84413.0,84412.0,0.13608]
[1744870532790,0.003,84413.0,84412.0,0.13608]
[1744870539462,0.003,84413.0,84412.0,0.30402791]
[1744870540315,0.001,84413.0,84412.0,0.30402791]
[1744870540726,0.01184595,84417.0,84413.0,0.23693033]
[1744870540934,0.01184595,84417.0,84414.0,0.11944791]
[1744870541834,0.02168531,84423.0,84414.0,0.11944791]
[1744870542070,0.01184581,84418.0,84414.0,0.13229428]
[1744870542755,0.001,84417.0,84414.0,0.13229428]
[1744870542982,0.001,84417.0,84414.0,0.35737484]
[1744870543206,0.01184595,84417.0,84414.0,0.35737484]
[1744870543666,0.24976266,84418.0,84414.0,0.35737484]
[1744870543891,0.01184595,84417.0,84414.0,0.35637484]
[1744870544368,0.01284581,84418.0,84414.0,0.35637484]
[1744870544627,0.001,84418.0,84416.0,0.2369194]
[1744870544855,0.02177081,84423.0,84419.0,0.23691197]
[1744870545079,0.0099257,84423.0,84420.0,0.23691068]
[1744870545287,0.24874091,84426.0,84420.0,0.23691068]
[1744870545520,0.24874091,84426.0,84419.0,0.23691197]
[1744870545521,0.01184511,84423.0,84419.0,0.23691197]
[1744870546320,0.01184581,84418.0,84413.0,0.23692849]
[1744870546608,0.01184581,84418.0,84415.0,0.13604]
[1744870546785,0.01184581,84418.0,84415.0,0.25548791]
[1744870547974,0.01184581,84418.0,84415.0,0.25648791]
[1744870548916,0.01284581,84418.0,84415.0,0.25648791]
[1744870549302,0.01184581,84418.0,84415.0,0.25648791]
[1744870549496,0.24876229,84418.0,84415.0,0.25648791]
[1744870549681,0.01284581,84418.0,84415.0,0.25648791]
[1744870550049,0.23692191,84416.0,84415.0,0.25648791]
[1744870550166,0.24976355,84418.0,84415.0,0.25648791]
[1744870551016,0.001,84418.0,84417.0,0.2369191]
[1744870551230,0.001,84418.0,84417.0,0.35873588]
[1744870551395,0.001,84418.0,84417.0,0.35636701]
[1744870551834,0.01184399,84431.0,84424.0,0.01184497]
[1744870551835,0.01184427,84429.0,84424.0,0.01184497]
[1744870552045,0.00585996,84427.0,84424.0,0.01184497]
[1744870552688,0.00585996,84427.0,84425.0,0.23689665]
[1744870552907,0.00685996,84427.0,84425.0,0.23689665]
[1744870553672,0.00585996,84427.0,84425.0,0.23689665]
[1744870554906,0.00685996,84427.0,84425.0,0.23689665]
[1744870555113,0.00685996,84427.0,84424.0,0.01184497]
[1744870555502,0.01870451,84427.0,84422.0,0.01184525]
[1744870555709,0.01870451,84427.0,84423.0,0.11944791]
[1744870555935,0.01770451,84427.0,84423.0,0.11944791]
[1744870556345,0.00685996,84427.0,84424.0,0.24874442]
[1744870556502,0.00685996,84427.0,84426.0,0.23689384]
[1744870556696,0.00585996,84427.0,84426.0,0.35634175]
[1744870558037,0.00685996,84427.0,84426.0,0.35634175]
[1744870558454,0.00585996,84427.0,84426.0,0.35634175]
[1744870558772,0.00685996,84427.0,84426.0,0.35634175]
[1744870559439,0.00685996,84427.0,84426.0,0.11944791]
[1744870559636,0.01184483,84425.0,84421.0,0.23690685]
[1744870559814,0.01184483,84425.0,84422.0,0.11944791]
[1744870561017,0.01184483,84425.0,84422.0,0.001]
[1744870562796,0.01284483,84425.0,84422.0,0.001]
[1744870564303,0.24974165,84425.0,84422.0,0.001]
[1744870564501,0.01284483,84425.0,84422.0,0.001]
[1744870564641,0.00928475,84425.0,84422.0,0.001]
[1744870565206,0.001,84425.0,84423.0,0.23690226]
[1744870566190,0.00585996,84427.0,84426.0,0.23689384]
[1744870567186,0.00585996,84427.0,84424.0,0.01184497]
[1744870567996,0.00685996,84427.0,84424.0,0.01184497]
[1744870568559,0.01184497,84424.0,84420.0,0.2487541]
[1744870568696,0.00585996,84427.0,84422.0,0.23690383]
[1744870568893,0.00685996,84427.0,84422.0,0.23690383]
[1744870569359,0.00585996,84427.0,84422.0,0.23690383]
[1744870569535,0.00585996,84427.0,84423.0,0.01184511]
[1744870569737,0.01184483,84425.0,84422.0,0.01184525]
[1744870569956,0.01770451,84427.0,84422.0,0.24875032]
[1744870570156,0.01770451,84427.0,84423.0,0.01184511]
[1744870571269,0.00685996,84427.0,84424.0,0.24874442]
[1744870571658,0.00585996,84427.0,84424.0,0.24874442]
[1744870572056,0.00685996,84427.0,84424.0,0.24874442]
[1744870572271,0.00685996,84427.0,84424.0,0.01184497]
[1744870572439,0.00585996,84427.0,84424.0,0.01184497]
[1744870572642,0.00685996,84427.0,84424.0,0.01184497]
[1744870574564,0.00685996,84427.0,84424.0,0.24874363]
[1744870575952,0.01870451,84427.0,84422.0,0.24875032]
[1744870576640,0.01870451,84427.0,84423.0,0.01184511]
[1744870577600,0.01184469,84426.0,84422.0,0.24975032]
[1744870578139,0.01184469,84426.0,84422.0,0.24875032]
[1744870578341,0.01184469,84426.0,84423.0,0.01184511]
[1744870578502,0.01770451,84427.0,84423.0,0.01184511]
[1744870578721,0.01870451,84427.0,84423.0,0.01184511]
[1744870578919,0.01184469,84426.0,84423.0,0.01184511]
[1744870579123,0.01184469,84426.0,84422.0,0.24875032]
[1744870579124,0.01184469,84426.0,84424.0,0.136]
[1744870579351,0.24873913,84426.0,84424.0,0.136]
[1744870579559,0.24873913,84426.0,84422.0,0.24875032]
[1744870579560,0.01184623,84415.0,84403.0,0.06024792]
[1744870579768,0.23694436,84408.0,84394.0,0.06024918]
[1744870580027,0.23694436,84408.0,84407.0,1.24432]
[1744870580350,0.28534436,84408.0,84407.0,1.24432]
[1744870581532,0.28534436,84408.0,84407.0,1.24732]
[1744870581868,0.28634436,84408.0,84407.0,1.24732]
[1744870582522,0.28534436,84408.0,84407.0,1.24732]
[1744870582722,0.28634436,84408.0,84407.0,1.24732]
[1744870582930,0.28634436,84408.0,84407.0,1.24432]
[1744870583161,0.28634436,84408.0,84407.0,1.24532]
[1744870583352,0.28634436,84408.0,84407.0,0.001]
[1744870583509,0.23696401,84401.0,84400.0,0.136]
[1744870584512,0.28208928,84392.0,84385.0,0.000843]
[1744870584726,0.28208928,84392.0,84391.0,0.136]
[1744870584923,0.28213441,84392.0,84391.0,0.136]
[1744870585644,0.28313441,84392.0,84391.0,0.136]
[1744870587050,0.00104513,84392.0,84391.0,0.136]
[1744870587630,4.513e-05,84392.0,84391.0,0.136]
[1744870588056,0.00104513,84392.0,84391.0,0.136]
[1744870591339,0.23803441,84392.0,84391.0,0.136]
[1744870593144,0.23803441,84392.0,84389.0,0.000843]
[1744870593355,0.23803441,84392.0,84391.0,0.13604]
[1744870594110,0.23703441,84392.0,84391.0,0.13604]
[1744870594256,0.23803441,84392.0,84391.0,0.13604]
[1744870594860,0.23703441,84392.0,84391.0,0.13604]
[1744870595266,0.23803441,84392.0,84391.0,0.13604]
[1744870601616,0.23803441,84392.0,84389.0,0.000843]
[1744870602405,0.00104513,84392.0,84389.0,0.000843]
[1744870603230,4.513e-05,84392.0,84389.0,0.000843]
[1744870603648,0.00104513,84392.0,84389.0,0.000843]
[1744870605381,0.00104513,84392.0,84389.0,0.24969029]
[1744870605733,0.00104513,84392.0,84391.0,0.23699209]
[1744870606765,4.513e-05,84392.0,84391.0,0.23699209]
[1744870607002,0.00104513,84392.0,84391.0,0.23699209]
[1744870607604,4.513e-05,84392.0,84389.0,0.24969029]
[1744870607809,0.00104513,84392.0,84389.0,0.24969029]
[1744870608245,0.00104513,84392.0,84390.0,0.2378348]
[1744870609306,4.513e-05,84392.0,84390.0,0.2378348]
[1744870609716,4.513e-05,84392.0,84390.0,0.2388348]
[1744870618443,4.513e-05,84392.0,84391.0,0.13604]
[1744870619730,0.00104513,84392.0,84391.0,0.13604]
[1744870647057,0.23699209,84391.0,84390.0,0.0008426]
[1744870648677,0.23699209,84391.0,84390.0,0.0018426]
[1744870651338,0.28399209,84391.0,84390.0,0.0018426]
[1744870660744,0.28499209,84391.0,84390.0,0.0018426]
[1744870660892,0.28499209,84391.0,84390.0,0.0008426]
[1744870665162,0.23799209,84391.0,84390.0,0.0008426]
[1744870667551,0.001,84391.0,84390.0,0.0008426]
[1744870677549,0.16964791,84391.0,84390.0,0.0008426]
[1744870677748,0.24895297,84391.0,84390.0,0.0008426]
[1744870679082,0.17064791,84391.0,84390.0,0.0008426]
[1744870679462,0.16964791,84391.0,84390.0,0.0008426]
[1744870679681,0.17164791,84391.0,84390.0,0.0008426]
[1744870684000,0.51164791,84391.0,84390.0,0.0008426]
[1744870686382,0.58886514,84384.0,84378.0,0.0008426]
[1744870686600,0.6257258,84379.0,84378.0,1e-08]
[1744870686777,0.74517371,84379.0,84378.0,1e-08]
[1744870688319,0.75017371,84379.0,84378.0,1e-08]
[1744870689718,0.75417371,84379.0,84378.0,1e-08]
[1744870695663,0.80530256,84379.0,84378.0,1e-08]
[1744870696067,0.80530256,84379.0,84366.0,0.0008424]
[1744870696068,0.62675951,84367.0,84366.0,1e-08]
[1744870696251,0.74620742,84367.0,84366.0,1e-08]
[1744870696892,0.75497433,84367.0,84366.0,1e-08]
[1744870697267,0.75697433,84367.0,84366.0,1e-08]
[1744870698112,0.75797433,84367.0,84366.0,1e-08]
[1744870698513,0.77011438,84367.0,84366.0,1e-08]
[1744870702620,0.69950742,84367.0,84366.0,1e-08]
[1744870702859,0.58005951,84367.0,84366.0,1e-08]
[1744870703279,0.24005951,84367.0,84366.0,1e-08]
[1744870709718,0.24005951,84367.0,84366.0,0.33536233]
[1744870709719,0.003,84367.0,84366.0,0.33536233]
[1744870710898,0.001,84367.0,84366.0,0.33536233]
[1744870711103,0.01185255,84370.0,84366.0,0.33536233]
[1744870711394,0.24890366,84370.0,84366.0,0.33736233]
[1744870711698,0.01185269,84369.0,84366.0,0.33736233]
[1744870712098,0.01185269,84369.0,84366.0,0.09830001]
[1744870712446,0.01185269,84369.0,84366.0,0.10030001]
[1744870712705,0.01185269,84369.0,84366.0,0.09830001]
[1744870712940,0.01185269,84369.0,84366.0,0.10030001]
[1744870715668,0.2370567,84368.0,84366.0,0.10030001]
[1744870717286,0.2370567,84368.0,84366.0,0.09830001]
[1744870717636,0.2370567,84368.0,84366.0,0.10030001]
[1744870719589,0.01185269,84369.0,84366.0,0.10030001]
[1744870720758,0.01185269,84369.0,84366.0,0.09830001]
[1744870721160,0.2370567,84368.0,84366.0,0.10030001]
[1744870723067,0.2370567,84368.0,84366.0,0.05040001]
[1744870723248,0.2370567,84368.0,84366.0,0.00200001]
[1744870723471,0.2370567,84368.0,84366.0,1e-08]
[1744870724013,0.2370567,84368.0,84366.0,0.00200001]
[1744870728261,0.2370567,84368.0,84366.0,1e-08]
[1744870728742,0.2380567,84368.0,84366.0,0.00100001]
[1744870746020,0.0488,84367.0,84366.0,0.00100001]
[1744870746953,0.0488,84367.0,84366.0,1e-08]
[1744870747308,0.0498,84367.0,84366.0,1e-08]
[1744870747475,0.0498,84367.0,84366.0,0.00100001]
[1744870749940,0.16924791,84367.0,84366.0,0.00100001]
[1744870750254,0.50924791,84367.0,84366.0,0.00100001]
[1744870750450,0.62645762,84367.0,84366.0,0.00100001]
[1744870751318,0.50924791,84367.0,84366.0,0.00100001]
[1744870752223,0.51821073,84367.0,84366.0,0.00100001]
[1744870752421,0.51821073,84367.0,84366.0,1e-08]
[1744870761783,0.46044791,84367.0,84366.0,1e-08]
[1744870762403,0.12044791,84367.0,84366.0,1e-08]
[1744870763537,0.001,84367.0,84366.0,1e-08]
[1744870771914,0.2343832,84368.0,84366.0,1e-08]
[1744870773558,0.2343832,84368.0,84362.0,0.049]
[1744870773559,0.23707075,84363.0,84362.0,0.049]
[1744870774303,0.23707918,84360.0,84359.0,0.0008432]
[1744870774700,0.23707918,84360.0,84359.0,0.0012957]
[1744870775466,0.23707918,84360.0,84359.0,0.0042957]
[1744870776069,0.23707918,84360.0,84359.0,0.00251775]
[1744870776637,0.23707918,84360.0,84359.0,0.00351775]
[1744870782243,0.01185185,84375.0,84363.0,0.01185353]
[1744870782419,0.01185297,84367.0,84360.0,0.23707918]
[1744870782647,0.01185311,84366.0,84361.0,0.01185381]
[1744870782978,0.01185339,84364.0,84360.0,0.24893313]
[1744870783193,0.01185227,84372.0,84360.0,0.01185395]
[1744870783387,0.01185241,84371.0,84367.0,0.0486]
[1744870783705,0.01185241,84371.0,84367.0,0.06045297]
[1744870783939,0.01185241,84371.0,84367.0,0.0486]
[1744870784139,0.24890374,84370.0,84367.0,0.0486]
[1744870784525,0.24890374,84370.0,84367.0,0.06073296]
[1744870784844,0.24890374,84370.0,84367.0,0.19665296]
[1744870785779,0.24890374,84370.0,84367.0,0.18452]
[1744870786451,0.24990374,84370.0,84367.0,0.18452]
[1744870786791,0.24990374,84370.0,84367.0,0.0486]
[1744870787089,0.24990374,84370.0,84367.0,0.18452]
[1744870787290,0.23705652,84369.0,84367.0,0.18452]
[1744870788415,0.23805652,84369.0,84367.0,0.18452]
[1744870797410,0.23805652,84369.0,84367.0,0.13592]
[1744870823624,0.23707871,84361.0,84357.0,0.0008432]
[1744870823828,0.23707918,84360.0,84358.0,0.13584]
[1744870823980,0.24893313,84360.0,84358.0,0.13584]
[1744870824181,0.01185395,84360.0,84358.0,0.13584]
[1744870824555,0.01185339,84364.0,84360.0,0.23707674]
[1744870824759,0.01185367,84362.0,84359.0,0.23707947]
[1744870825710,0.01185367,84362.0,84360.0,0.002]
[1744870826116,0.01185353,84363.0,84359.0,0.23707947]
[1744870826318,0.01185353,84363.0,84359.0,0.24007947]
[1744870826568,0.01185353,84363.0,84360.0,0.001]
[1744870827100,0.0098837,84367.0,84365.0,0.2370627]
[1744870827423,0.05805086,84382.0,84365.0,0.2370627]
[1744870827424,0.01185171,84376.0,84371.0,0.23704555]
[1744870827623,0.01185185,84375.0,84369.0,0.23705225]
[1744870827835,0.01185227,84372.0,84369.0,0.23705225]
[1744870828078,0.01185213,84373.0,84369.0,0.23705225]
[1744870828457,0.01185227,84372.0,84369.0,0.23705225]
[1744870828862,0.01185185,84375.0,84373.0,0.23704208]
[1744870828863,0.001,84375.0,84373.0,0.23704208]
[1744870829072,0.24886272,84384.0,84377.0,0.23703141]
[1744870829375,0.01185114,84380.0,84377.0,0.23703141]
[1744870829574,0.01185171,84376.0,84373.0,0.13584]
[1744870829796,0.001,84375.0,84373.0,0.13584]
[1744870829993,0.01285185,84375.0,84374.0,0.13584]
[1744870830179,0.01385185,84375.0,84374.0,0.13584]
[1744870830382,0.002,84375.0,84374.0,0.13584]
[1744870831366,0.003,84375.0,84374.0,0.13584]
[1744870831768,0.01214448,84375.0,84374.0,0.13584]
[1744870832906,0.01314448,84375.0,84374.0,0.39506225]
[1744870833311,0.002,84375.0,84374.0,0.15802241]
[1744870833545,0.01299775,84375.0,84374.0,0.15802241]
[1744870841289,0.002,84375.0,84374.0,0.15802241]
[1744870845505,0.002,84375.0,84374.0,0.27984055]
[1744870845678,0.002,84375.0,84374.0,0.27747032]
[1744870847346,0.002,84375.0,84374.0,0.32407032]
[1744870848219,0.001,84375.0,84374.0,0.32407032]